[Event "Late-Titled-Tuesday-Blitz-December-26-2023"]
[Site "Chess.com"]
[Date "2023.12.26"]
[Round "10"]
[White "WPWPWP-2015"]
[Black "UmutErdemGunduz"]
[Result "0-1"]
[WhiteElo "2590"]
[BlackElo "2718"]
[TimeControl "180+1"]
[EndTime "15:54:40 PST"]
[Termination "UmutErdemGunduz won on time"]

1. e4 {[%clk 0:03:00.9]} 1... c5 {[%clk 0:02:59.5]} 2. Nf3 {[%clk 0:03:00.6]}
2... d6 {[%clk 0:02:55.8]} 3. d4 {[%clk 0:03:00.1]} 3... cxd4 {[%clk 0:02:56.7]}
4. Nxd4 {[%clk 0:03:00.5]} 4... Nf6 {[%clk 0:02:54.5]} 5. Nc3 {[%clk 0:03:01]}
5... Nc6 {[%clk 0:02:54.4]} 6. h3 {[%clk 0:02:59.7]} 6... g6 {[%clk 0:02:51]} 7.
Nb3 {[%clk 0:02:59.2]} 7... Bg7 {[%clk 0:02:46.2]} 8. Be3 {[%clk 0:02:58.8]}
8... O-O {[%clk 0:02:41.6]} 9. Be2 {[%clk 0:02:58.7]} 9... Be6 {[%clk
0:02:33.2]} 10. O-O {[%clk 0:02:58.8]} 10... d5 {[%clk 0:02:33.2]} 11. exd5
{[%clk 0:02:38.4]} 11... Nxd5 {[%clk 0:02:34.1]} 12. Nxd5 {[%clk 0:02:38.8]}
12... Bxd5 {[%clk 0:02:27.6]} 13. c3 {[%clk 0:02:38.6]} 13... b6 {[%clk
0:02:22]} 14. Qd2 {[%clk 0:02:34.2]} 14... Ne5 {[%clk 0:02:15.7]} 15. Bd4 {[%clk
0:02:29.2]} 15... e6 {[%clk 0:01:53.6]} 16. Rfd1 {[%clk 0:02:21.4]} 16... Qc7
{[%clk 0:01:42]} 17. Qe3 {[%clk 0:02:05.6]} 17... Rfd8 {[%clk 0:01:39.4]} 18.
Qg3 {[%clk 0:01:59.5]} 18... Rac8 {[%clk 0:01:35.3]} 19. Ba6 {[%clk 0:01:57.9]}
19... Rb8 {[%clk 0:01:11.4]} 20. Re1 {[%clk 0:01:56.4]} 20... f6 {[%clk
0:01:11.5]} 21. Bd3 {[%clk 0:01:46.4]} 21... Qb7 {[%clk 0:00:56.5]} 22. Bxe5
{[%clk 0:01:39.7]} 22... fxe5 {[%clk 0:00:57.4]} 23. Re3 {[%clk 0:01:37.5]}
23... Rf8 {[%clk 0:00:53]} 24. Rae1 {[%clk 0:01:32.4]} 24... Bh6 {[%clk
0:00:49.8]} 25. Rxe5 {[%clk 0:01:22.1]} 25... Bf4 {[%clk 0:00:49.2]} 26. Qg4
{[%clk 0:01:21.9]} 26... Bxe5 {[%clk 0:00:48.2]} 27. Rxe5 {[%clk 0:01:20.7]}
27... Rf6 {[%clk 0:00:48.1]} 28. Nd4 {[%clk 0:01:14.3]} 28... Rbf8 {[%clk
0:00:46.2]} 29. f3 {[%clk 0:01:13.3]} 29... Rf4 {[%clk 0:00:41.1]} 30. Qg5
{[%clk 0:01:13]} 30... Qf7 {[%clk 0:00:36.8]} 31. h4 {[%clk 0:01:05]} 31... Qf6
{[%clk 0:00:26.8]} 32. g3 {[%clk 0:00:56.5]} 32... Rxf3 {[%clk 0:00:23.8]} 33.
Qxf6 {[%clk 0:00:33.2]} 33... R3xf6 {[%clk 0:00:20.2]} 34. c4 {[%clk 0:00:33]}
34... Bb7 {[%clk 0:00:18.6]} 35. Re3 {[%clk 0:00:15.2]} 35... Rd8 {[%clk
0:00:18.4]} 36. Nb3 {[%clk 0:00:08]} 36... Kf7 {[%clk 0:00:16.5]} 37. Be2 {[%clk
0:00:07.3]} 37... Rf5 {[%clk 0:00:15.1]} 38. a3 {[%clk 0:00:04.9]} 38... h5
{[%clk 0:00:15]} 39. Bd3 {[%clk 0:00:02.6]} 39... Rf3 {[%clk 0:00:14.3]} 40.
Rxf3+ {[%clk 0:00:02.7]} 40... Bxf3 {[%clk 0:00:15.2]} 41. Bf1 {[%clk
0:00:02.8]} 41... e5 {[%clk 0:00:15.5]} 42. Kf2 {[%clk 0:00:03.2]} 42... Bc6
{[%clk 0:00:14.6]} 43. Ke3 {[%clk 0:00:03.2]} 43... Kf6 {[%clk 0:00:14.9]} 44.
Be2 {[%clk 0:00:03.6]} 44... Ke6 {[%clk 0:00:10.5]} 45. Bd3 {[%clk 0:00:03.8]}
45... e4 {[%clk 0:00:09.3]} 46. Be2 {[%clk 0:00:03.8]} 46... Ke5 {[%clk
0:00:09.7]} 47. c5 {[%clk 0:00:02.9]} 47... b5 {[%clk 0:00:09.8]} 48. Nd2 {[%clk
0:00:02.5]} 48... a6 {[%clk 0:00:09.4]} 49. Nb1 {[%clk 0:00:02.6]} 49... Rd5
{[%clk 0:00:09.2]} 50. b4 {[%clk 0:00:02.3]} 50... Rd8 {[%clk 0:00:09]} 51. Nc3
{[%clk 0:00:01.8]} 51... Rg8 {[%clk 0:00:09.2]} 52. Nd1 {[%clk 0:00:01.7]} 52...
g5 {[%clk 0:00:09.5]} 53. Nf2 {[%clk 0:00:01.9]} 53... gxh4 {[%clk 0:00:09.8]}
54. g4 {[%clk 0:00:01.1]} 54... hxg4 {[%clk 0:00:10.1]} 55. Nxg4+ {[%clk
0:00:01.4]} 55... Ke6 {[%clk 0:00:08.6]} 56. Kf4 {[%clk 0:00:02]} 56... Rf8+
{[%clk 0:00:08.5]} 57. Ke3 {[%clk 0:00:01.9]} 57... h3 {[%clk 0:00:06.9]} 58.
Nh2 {[%clk 0:00:02.1]} 58... Rh8 {[%clk 0:00:07.3]} 59. Bg4+ {[%clk 0:00:02.3]}
59... Kf6 {[%clk 0:00:07.9]} 60. Kf4 {[%clk 0:00:02.6]} 60... Kg6 {[%clk
0:00:07.5]} 61. Bf5+ {[%clk 0:00:02.9]} 61... Kf6 {[%clk 0:00:08.2]} 62. Bg4
{[%clk 0:00:03.3]} 62... Kg7 {[%clk 0:00:08.4]} 63. Bf5 {[%clk 0:00:02.9]} 63...
Rf8 {[%clk 0:00:08.6]} 64. Kg5 {[%clk 0:00:02.8]} 64... e3 {[%clk 0:00:08.4]}
65. Bg4 {[%clk 0:00:02.8]} 65... Rf2 {[%clk 0:00:07.6]} 0-1

[Event "Late-Titled-Tuesday-Blitz-December-26-2023"]
[Site "Chess.com"]
[Date "2023.12.26"]
[Round "10"]
[White "Slovak_fighter2000"]
[Black "Kapitan_Bayan"]
[Result "1-0"]
[WhiteElo "2483"]
[BlackElo "2332"]
[TimeControl "180+1"]
[EndTime "15:54:53 PST"]
[Termination "Slovak_fighter2000 won by resignation"]

1. b4 {[%clk 0:02:59.4]} 1... e5 {[%clk 0:02:59.2]} 2. Bb2 {[%clk 0:02:59.4]}
2... Bxb4 {[%clk 0:02:59.6]} 3. Bxe5 {[%clk 0:02:58.3]} 3... Nf6 {[%clk
0:02:59.8]} 4. Nf3 {[%clk 0:02:54.9]} 4... d5 {[%clk 0:02:59.6]} 5. e3 {[%clk
0:02:50.5]} 5... c5 {[%clk 0:02:59.4]} 6. c4 {[%clk 0:02:46.8]} 6... Nc6 {[%clk
0:02:55.1]} 7. Bb2 {[%clk 0:02:33.9]} 7... d4 {[%clk 0:02:52.8]} 8. exd4 {[%clk
0:02:26.5]} 8... cxd4 {[%clk 0:02:52.9]} 9. Bd3 {[%clk 0:02:26.4]} 9... O-O
{[%clk 0:02:48.6]} 10. O-O {[%clk 0:02:26.4]} 10... Bg4 {[%clk 0:02:48.3]} 11.
h3 {[%clk 0:02:26.3]} 11... Bh5 {[%clk 0:02:46]} 12. g4 {[%clk 0:02:20.6]} 12...
Bg6 {[%clk 0:02:46]} 13. Bxg6 {[%clk 0:02:20]} 13... fxg6 {[%clk 0:02:44.3]} 14.
d3 {[%clk 0:02:16]} 14... Qd7 {[%clk 0:02:35.2]} 15. Nbd2 {[%clk 0:02:03.7]}
15... Nxg4 {[%clk 0:01:57.4]} 16. hxg4 {[%clk 0:02:01.7]} 16... Qxg4+ {[%clk
0:01:57.2]} 17. Kh1 {[%clk 0:02:02.3]} 17... Qh3+ {[%clk 0:01:12.7]} 18. Nh2
{[%clk 0:01:51.1]} 18... Bd6 {[%clk 0:01:10]} 19. f4 {[%clk 0:01:46.4]} 19...
Bxf4 {[%clk 0:01:08.3]} 20. Rxf4 {[%clk 0:01:41.3]} 20... Rxf4 {[%clk
0:01:09.2]} 21. Ne4 {[%clk 0:01:37.1]} 21... Raf8 {[%clk 0:01:03.2]} 22. Qe2
{[%clk 0:01:31.6]} 22... Ne5 {[%clk 0:00:58.4]} 23. Rg1 {[%clk 0:00:58.1]} 23...
Nxd3 {[%clk 0:00:51]} 24. Bxd4 {[%clk 0:00:57.6]} 24... h6 {[%clk 0:00:31.4]}
25. Bxa7 {[%clk 0:00:34.4]} 25... Re8 {[%clk 0:00:31.5]} 26. Nf6+ {[%clk
0:00:32.2]} 26... Rxf6 {[%clk 0:00:26.4]} 27. Qxe8+ {[%clk 0:00:32.1]} 27... Kh7
{[%clk 0:00:27.3]} 28. Qe3 {[%clk 0:00:27.5]} 28... Nf2+ {[%clk 0:00:25.4]} 29.
Qxf2 {[%clk 0:00:26.8]} 29... Rxf2 {[%clk 0:00:25.5]} 30. Bxf2 {[%clk
0:00:27.2]} 30... Qe6 {[%clk 0:00:24.8]} 31. Rc1 {[%clk 0:00:16.5]} 31... Qe2
{[%clk 0:00:18.5]} 32. Kg1 {[%clk 0:00:15.4]} 32... Qxa2 {[%clk 0:00:18.9]} 33.
Nf1 {[%clk 0:00:14.4]} 33... Qb2 {[%clk 0:00:18.2]} 34. Rd1 {[%clk 0:00:10.5]}
34... Qc2 {[%clk 0:00:17.5]} 35. Rd4 {[%clk 0:00:10.1]} 35... g5 {[%clk
0:00:17]} 36. Ne3 {[%clk 0:00:09]} 36... Qc1+ {[%clk 0:00:17.4]} 37. Kg2 {[%clk
0:00:08.1]} 37... h5 {[%clk 0:00:17.1]} 38. Nd5 {[%clk 0:00:07.6]} 38... h4
{[%clk 0:00:16.4]} 39. Rg4 {[%clk 0:00:04.9]} 39... Kg6 {[%clk 0:00:13.4]} 40.
Be3 {[%clk 0:00:04.7]} 40... Qc2+ {[%clk 0:00:10.6]} 41. Bf2 {[%clk 0:00:01.4]}
41... Kh5 {[%clk 0:00:06]} 42. Ne3 {[%clk 0:00:01.9]} 42... Qb1 {[%clk
0:00:04.2]} 43. Kf3 {[%clk 0:00:01.8]} 43... Qa2 {[%clk 0:00:03.8]} 44. Kg2
{[%clk 0:00:02.2]} 44... b6 {[%clk 0:00:04.1]} 45. Kf3 {[%clk 0:00:01.9]} 45...
Qa8+ {[%clk 0:00:05]} 46. Ke2 {[%clk 0:00:01.8]} 46... Qb7 {[%clk 0:00:05.9]}
47. Kf1 {[%clk 0:00:01.7]} 47... Qf7 {[%clk 0:00:06.5]} 48. Kg2 {[%clk 0:00:02]}
48... Qf6 {[%clk 0:00:06.4]} 49. Kf1 {[%clk 0:00:02.3]} 49... g6 {[%clk
0:00:07]} 50. Kg2 {[%clk 0:00:02.8]} 50... Qc6+ {[%clk 0:00:07.9]} 51. Kf1
{[%clk 0:00:03.1]} 51... Qf3 {[%clk 0:00:08.6]} 52. Ke1 {[%clk 0:00:03.4]} 52...
Qxg4 {[%clk 0:00:09]} 53. Nxg4 {[%clk 0:00:03.8]} 53... Kxg4 {[%clk 0:00:09.9]}
54. Bxb6 {[%clk 0:00:04.3]} 54... Kf3 {[%clk 0:00:10.8]} 55. c5 {[%clk
0:00:04.4]} 55... g4 {[%clk 0:00:11.7]} 56. c6 {[%clk 0:00:04.7]} 56... g3
{[%clk 0:00:12.2]} 57. c7 {[%clk 0:00:05.3]} 57... h3 {[%clk 0:00:12.6]} 58.
c8=Q {[%clk 0:00:05.5]} 58... h2 {[%clk 0:00:13.5]} 59. Qb7+ {[%clk 0:00:05.6]}
59... Kg4 {[%clk 0:00:13.5]} 60. Qg2 {[%clk 0:00:05.3]} 60... Kh4 {[%clk
0:00:12.9]} 61. Bc7 {[%clk 0:00:05.3]} 61... g5 {[%clk 0:00:13.5]} 62. Bxg3+
{[%clk 0:00:05.3]} 62... Kh5 {[%clk 0:00:14.2]} 63. Bxh2 {[%clk 0:00:05.7]} 1-0

[Event "Late-Titled-Tuesday-Blitz-December-26-2023"]
[Site "Chess.com"]
[Date "2023.12.26"]
[Round "10"]
[White "GMKrikor"]
[Black "Jospem"]
[Result "0-1"]
[WhiteElo "2836"]
[BlackElo "3079"]
[TimeControl "180+1"]
[EndTime "15:55:00 PST"]
[Termination "Jospem won on time"]

1. Nf3 {[%clk 0:03:00.9]} 1... c5 {[%clk 0:02:57.5]} 2. c4 {[%clk 0:03:00.9]}
2... Nc6 {[%clk 0:02:58]} 3. Nc3 {[%clk 0:02:58.5]} 3... g6 {[%clk 0:02:55.9]}
4. d4 {[%clk 0:02:52.8]} 4... cxd4 {[%clk 0:02:55.5]} 5. Nxd4 {[%clk 0:02:53.7]}
5... Bg7 {[%clk 0:02:56.1]} 6. e3 {[%clk 0:02:54.1]} 6... Nf6 {[%clk 0:02:55.2]}
7. Nc2 {[%clk 0:02:52.3]} 7... d6 {[%clk 0:02:53.2]} 8. Be2 {[%clk 0:02:52.4]}
8... O-O {[%clk 0:02:50.1]} 9. e4 {[%clk 0:02:52.9]} 9... Nd7 {[%clk 0:02:49.3]}
10. Bd2 {[%clk 0:02:44.1]} 10... Nc5 {[%clk 0:02:48.8]} 11. f3 {[%clk
0:02:37.7]} 11... a5 {[%clk 0:02:48.6]} 12. O-O {[%clk 0:02:35.4]} 12... Be6
{[%clk 0:02:47.3]} 13. Kh1 {[%clk 0:02:32.4]} 13... a4 {[%clk 0:02:47.3]} 14.
Rb1 {[%clk 0:02:18.7]} 14... Na5 {[%clk 0:02:37.6]} 15. Na3 {[%clk 0:02:12.2]}
15... Nc6 {[%clk 0:02:38.2]} 16. Be3 {[%clk 0:02:09.2]} 16... Qa5 {[%clk
0:02:26.4]} 17. Nd5 {[%clk 0:01:57.9]} 17... Rfc8 {[%clk 0:02:25.6]} 18. Nb5
{[%clk 0:01:46.2]} 18... Qd8 {[%clk 0:02:19.2]} 19. Qd2 {[%clk 0:01:40.6]} 19...
Bxd5 {[%clk 0:02:09.2]} 20. exd5 {[%clk 0:01:20.2]} 20... Ne5 {[%clk 0:02:09.1]}
21. Rbc1 {[%clk 0:01:19.4]} 21... Ned7 {[%clk 0:02:04.7]} 22. Rfe1 {[%clk
0:01:17.2]} 22... Qa5 {[%clk 0:01:56.9]} 23. Qc2 {[%clk 0:01:03.4]} 23... Na6
{[%clk 0:01:38.1]} 24. Bd2 {[%clk 0:00:56.1]} 24... Qd8 {[%clk 0:01:38.1]} 25.
Bc3 {[%clk 0:00:55.3]} 25... Bxc3 {[%clk 0:01:34.1]} 26. Qxc3 {[%clk 0:00:56.2]}
26... Nf6 {[%clk 0:01:34]} 27. Bd3 {[%clk 0:00:54.2]} 27... Nxd5 {[%clk
0:01:28.4]} 28. Qd4 {[%clk 0:00:54.6]} 28... Nf6 {[%clk 0:01:27]} 29. Rc2 {[%clk
0:00:49.3]} 29... Nc5 {[%clk 0:01:27.2]} 30. Rce2 {[%clk 0:00:47]} 30... e5
{[%clk 0:01:27.5]} 31. Qe3 {[%clk 0:00:42.2]} 31... d5 {[%clk 0:01:19.3]} 32.
Bb1 {[%clk 0:00:39]} 32... dxc4 {[%clk 0:01:14.7]} 33. Qxe5 {[%clk 0:00:38.1]}
33... Nd3 {[%clk 0:01:12.6]} 34. Bxd3 {[%clk 0:00:36.2]} 34... cxd3 {[%clk
0:01:13.5]} 35. Rd2 {[%clk 0:00:36.3]} 35... Rc2 {[%clk 0:01:11.1]} 36. Rdd1
{[%clk 0:00:24.2]} 36... Ra6 {[%clk 0:00:58.1]} 37. Nd4 {[%clk 0:00:23.4]} 37...
Rc7 {[%clk 0:00:37.7]} 38. Rxd3 {[%clk 0:00:17.7]} 38... Rd7 {[%clk 0:00:38.3]}
39. Red1 {[%clk 0:00:08.6]} 39... Rad6 {[%clk 0:00:38.2]} 40. h3 {[%clk
0:00:07.2]} 40... Qb6 {[%clk 0:00:33.8]} 41. Qe3 {[%clk 0:00:05.5]} 41... Qc5
{[%clk 0:00:22.8]} 42. a3 {[%clk 0:00:04.9]} 42... Qc4 {[%clk 0:00:22.9]} 43.
Rc3 {[%clk 0:00:03.5]} 43... Qd5 {[%clk 0:00:18.9]} 44. Rcd3 {[%clk 0:00:03.6]}
44... Qc5 {[%clk 0:00:15.4]} 45. Qd2 {[%clk 0:00:02.4]} 45... Qb6 {[%clk
0:00:14.9]} 46. Qe3 {[%clk 0:00:02.3]} 46... Qxb2 {[%clk 0:00:13.3]} 47. Kh2
{[%clk 0:00:02.1]} 47... Qb6 {[%clk 0:00:13.5]} 48. Qe5 {[%clk 0:00:02.3]} 48...
Rd5 {[%clk 0:00:13.1]} 49. Qb8+ {[%clk 0:00:02]} 49... Kg7 {[%clk 0:00:09.5]}
50. Qf4 {[%clk 0:00:02.9]} 50... Nh5 {[%clk 0:00:07.2]} 51. Qe3 {[%clk
0:00:02.6]} 51... Qd6+ {[%clk 0:00:07.2]} 52. Kg1 {[%clk 0:00:03.3]} 52... Qf6
{[%clk 0:00:06.8]} 53. R3d2 {[%clk 0:00:03.2]} 53... Nf4 {[%clk 0:00:07]} 54.
Kh1 {[%clk 0:00:02.6]} 54... h5 {[%clk 0:00:07]} 55. Qf2 {[%clk 0:00:02.9]}
55... h4 {[%clk 0:00:07.1]} 56. Qe3 {[%clk 0:00:03.2]} 56... Nh5 {[%clk
0:00:06.9]} 57. Kg1 {[%clk 0:00:03]} 57... Ng3 {[%clk 0:00:07.3]} 58. Qf2 {[%clk
0:00:02.6]} 58... Rxd4 {[%clk 0:00:07.3]} 59. Rxd4 {[%clk 0:00:02.6]} 59... Ne2+
{[%clk 0:00:06.2]} 60. Qxe2 {[%clk 0:00:02.7]} 60... Rxd4 {[%clk 0:00:07.1]} 61.
Rxd4 {[%clk 0:00:02.3]} 61... Qxd4+ {[%clk 0:00:08]} 62. Kh2 {[%clk 0:00:03.1]}
62... Qd6+ {[%clk 0:00:08]} 63. Kh1 {[%clk 0:00:03.2]} 63... Qxa3 {[%clk
0:00:05.6]} 64. Qe5+ {[%clk 0:00:03.6]} 64... Kh7 {[%clk 0:00:05.3]} 65. Qf6
{[%clk 0:00:01.8]} 65... Qc1+ {[%clk 0:00:05.1]} 66. Kh2 {[%clk 0:00:02]} 66...
Qc4 {[%clk 0:00:03.3]} 67. f4 {[%clk 0:00:01.2]} 67... a3 {[%clk 0:00:03.1]} 68.
Qxh4+ {[%clk 0:00:01.5]} 68... Kg7 {[%clk 0:00:03.8]} 69. Qg5 {[%clk 0:00:02]}
69... Qd4 {[%clk 0:00:03.1]} 70. f5 {[%clk 0:00:02.2]} 70... Qe5+ {[%clk
0:00:03.2]} 71. Kh1 {[%clk 0:00:02.9]} 71... a2 {[%clk 0:00:02.7]} 72. f6+
{[%clk 0:00:02.7]} 72... Qxf6 {[%clk 0:00:03.3]} 0-1

[Event "Late-Titled-Tuesday-Blitz-December-26-2023"]
[Site "Chess.com"]
[Date "2023.12.26"]
[Round "10"]
[White "vugarrasulov"]
[Black "Msb2"]
[Result "1/2-1/2"]
[WhiteElo "2950"]
[BlackElo "3020"]
[TimeControl "180+1"]
[EndTime "15:55:17 PST"]
[Termination "Game drawn by repetition"]

1. d4 {[%clk 0:03:00.9]} 1... d5 {[%clk 0:03:00.4]} 2. c4 {[%clk 0:03:01.2]}
2... e6 {[%clk 0:03:01.1]} 3. Nc3 {[%clk 0:03:01.3]} 3... Bb4 {[%clk 0:03:01.8]}
4. Nf3 {[%clk 0:02:59.2]} 4... Nf6 {[%clk 0:03:02.3]} 5. Bg5 {[%clk 0:02:57]}
5... h6 {[%clk 0:03:02.6]} 6. Bxf6 {[%clk 0:02:57.3]} 6... Qxf6 {[%clk
0:03:03.5]} 7. Qb3 {[%clk 0:02:57.5]} 7... c5 {[%clk 0:03:03.4]} 8. cxd5 {[%clk
0:02:57.6]} 8... exd5 {[%clk 0:03:04.3]} 9. dxc5 {[%clk 0:02:56.2]} 9... Bxc3+
{[%clk 0:03:04]} 10. Qxc3 {[%clk 0:02:56.2]} 10... Qxc3+ {[%clk 0:03:03.5]} 11.
bxc3 {[%clk 0:02:57.1]} 11... O-O {[%clk 0:02:59.5]} 12. O-O-O {[%clk
0:02:49.2]} 12... Be6 {[%clk 0:02:55]} 13. Nd4 {[%clk 0:02:43.6]} 13... Rc8
{[%clk 0:02:28.1]} 14. e4 {[%clk 0:02:29.9]} 14... Rxc5 {[%clk 0:02:21.5]} 15.
Nxe6 {[%clk 0:02:28.9]} 15... fxe6 {[%clk 0:02:22.4]} 16. exd5 {[%clk
0:02:29.6]} 16... exd5 {[%clk 0:02:23.3]} 17. Rxd5 {[%clk 0:02:27.7]} 17...
Rxc3+ {[%clk 0:02:12.1]} 18. Kb2 {[%clk 0:02:26.7]} 18... Rc8 {[%clk 0:02:12.6]}
19. Bb5 {[%clk 0:02:17.8]} 19... Nc6 {[%clk 0:02:05.4]} 20. Rhd1 {[%clk
0:02:03.8]} 20... a6 {[%clk 0:02:01.3]} 21. Bc4 {[%clk 0:01:57]} 21... Kh8
{[%clk 0:01:58.4]} 22. Bb3 {[%clk 0:01:57.5]} 22... b5 {[%clk 0:01:55.8]} 23.
Rc5 {[%clk 0:01:47.1]} 23... Na5 {[%clk 0:01:54]} 24. Rxc8+ {[%clk 0:01:46.6]}
24... Rxc8 {[%clk 0:01:54.9]} 25. Rd6 {[%clk 0:01:46.2]} 25... Nxb3 {[%clk
0:01:35.3]} 26. axb3 {[%clk 0:01:29.5]} 26... a5 {[%clk 0:01:35.3]} 27. Ra6
{[%clk 0:01:24.3]} 27... a4 {[%clk 0:01:34.7]} 28. bxa4 {[%clk 0:01:24.2]} 28...
bxa4 {[%clk 0:01:35.6]} 29. Rxa4 {[%clk 0:01:24.8]} 29... Rf8 {[%clk 0:01:32.1]}
30. f3 {[%clk 0:01:22.8]} 30... Rc8 {[%clk 0:01:25.1]} 31. Re4 {[%clk
0:01:13.7]} 31... Kh7 {[%clk 0:01:24.5]} 32. Kb3 {[%clk 0:01:11.3]} 32... h5
{[%clk 0:01:20.9]} 33. Rc4 {[%clk 0:01:08.2]} 33... Re8 {[%clk 0:01:21.1]} 34.
Rc2 {[%clk 0:01:08.1]} 34... g6 {[%clk 0:01:15.6]} 35. Kc3 {[%clk 0:01:08]}
35... Kg7 {[%clk 0:01:09.2]} 36. Kd3 {[%clk 0:01:08.2]} 36... Rd8+ {[%clk
0:01:09.1]} 37. Ke3 {[%clk 0:01:07.8]} 37... Re8+ {[%clk 0:01:09.6]} 38. Kf2
{[%clk 0:01:07.2]} 38... Re7 {[%clk 0:01:08.9]} 39. Re2 {[%clk 0:01:05.4]} 39...
Ra7 {[%clk 0:01:09.2]} 40. f4 {[%clk 0:01:04.8]} 40... Ra4 {[%clk 0:01:08.1]}
41. Kf3 {[%clk 0:01:05.1]} 41... Ra3+ {[%clk 0:01:08.5]} 42. Re3 {[%clk
0:01:05.5]} 42... Ra4 {[%clk 0:01:08.5]} 43. h3 {[%clk 0:01:03.6]} 43... Kf6
{[%clk 0:01:05.4]} 44. Rb3 {[%clk 0:01:03.6]} 44... Ra6 {[%clk 0:01:05.2]} 45.
Kg3 {[%clk 0:00:59.7]} 45... Ra4 {[%clk 0:01:03.4]} 46. Re3 {[%clk 0:00:58.7]}
46... Kf5 {[%clk 0:01:01]} 47. Re5+ {[%clk 0:00:52.1]} 47... Kf6 {[%clk
0:01:01.3]} 48. Kf3 {[%clk 0:00:52.6]} 48... Ra3+ {[%clk 0:00:59.3]} 49. Re3
{[%clk 0:00:53.2]} 49... Ra4 {[%clk 0:00:57.9]} 50. g3 {[%clk 0:00:53.6]} 50...
Rb4 {[%clk 0:00:58]} 51. Rc3 {[%clk 0:00:52.1]} 51... Rb6 {[%clk 0:00:57.7]} 52.
g4 {[%clk 0:00:50]} 52... hxg4+ {[%clk 0:00:58.6]} 53. hxg4 {[%clk 0:00:50.9]}
53... Ra6 {[%clk 0:00:54.8]} 54. g5+ {[%clk 0:00:50.6]} 54... Kf7 {[%clk
0:00:52.5]} 55. Rc4 {[%clk 0:00:47.8]} 55... Ra7 {[%clk 0:00:49]} 56. Ke4 {[%clk
0:00:47.3]} 56... Re7+ {[%clk 0:00:49]} 57. Kd5 {[%clk 0:00:47]} 57... Rd7+
{[%clk 0:00:49.6]} 58. Ke5 {[%clk 0:00:46.6]} 58... Re7+ {[%clk 0:00:37.7]} 59.
Kd6 {[%clk 0:00:46.7]} 59... Re6+ {[%clk 0:00:38.3]} 60. Kd5 {[%clk 0:00:47.1]}
60... Re7 {[%clk 0:00:38.4]} 61. Rb4 {[%clk 0:00:43.8]} 61... Rd7+ {[%clk
0:00:36.3]} 62. Ke5 {[%clk 0:00:42.1]} 62... Re7+ {[%clk 0:00:36.8]} 63. Kd6
{[%clk 0:00:42.7]} 63... Re6+ {[%clk 0:00:37.4]} 64. Kd5 {[%clk 0:00:43.4]}
64... Re7 {[%clk 0:00:38]} 65. Rb6 {[%clk 0:00:36.4]} 65... Rd7+ {[%clk
0:00:34.7]} 66. Rd6 {[%clk 0:00:32.7]} 66... Ra7 {[%clk 0:00:34.9]} 67. Rf6+
{[%clk 0:00:29.1]} 67... Kg7 {[%clk 0:00:35.1]} 68. Rc6 {[%clk 0:00:30]} 68...
Kf7 {[%clk 0:00:32.9]} 69. Kd6 {[%clk 0:00:25.9]} 69... Ra5 {[%clk 0:00:32]} 70.
Rc7+ {[%clk 0:00:24.3]} 70... Kg8 {[%clk 0:00:27.7]} 71. Rc5 {[%clk 0:00:23.2]}
71... Ra8 {[%clk 0:00:18.5]} 72. Ke6 {[%clk 0:00:19.8]} 72... Rf8 {[%clk
0:00:18.4]} 73. Rc4 {[%clk 0:00:19.4]} 73... Rf5 {[%clk 0:00:17.4]} 74. Rd4
{[%clk 0:00:14.7]} 74... Kg7 {[%clk 0:00:17.6]} 75. Rb4 {[%clk 0:00:14.1]} 75...
Kg8 {[%clk 0:00:18.2]} 76. Re4 {[%clk 0:00:12.5]} 76... Kg7 {[%clk 0:00:18.8]}
77. Kd6 {[%clk 0:00:12.8]} 77... Kg8 {[%clk 0:00:18.4]} 78. Ke7 {[%clk 0:00:09]}
78... Kg7 {[%clk 0:00:18.6]} 79. Kd7 {[%clk 0:00:09.5]} 79... Kg8 {[%clk
0:00:18.9]} 80. Re8+ {[%clk 0:00:09.6]} 80... Kg7 {[%clk 0:00:19.2]} 81. Re7+
{[%clk 0:00:10.2]} 81... Kg8 {[%clk 0:00:19.7]} 82. Re4 {[%clk 0:00:09]} 82...
Kg7 {[%clk 0:00:19.8]} 83. Ke7 {[%clk 0:00:08.6]} 83... Kg8 {[%clk 0:00:20.4]}
84. Ke6 {[%clk 0:00:08.2]} 84... Kg7 {[%clk 0:00:20.8]} 85. Kd6 {[%clk
0:00:08.8]} 85... Kg8 {[%clk 0:00:21.4]} 86. Re8+ {[%clk 0:00:07.5]} 86... Kg7
{[%clk 0:00:21.5]} 87. Re7+ {[%clk 0:00:08.2]} 87... Kg8 {[%clk 0:00:21.9]} 88.
Re6 {[%clk 0:00:08.6]} 88... Kg7 {[%clk 0:00:20.6]} 89. Re4 {[%clk 0:00:07.9]}
1/2-1/2